Cogmind - Beta 16 @@@ ROGUE MODE // 2025.11.02 @ 13:08:32 Player: rt Result: Destroyed by Z7-1GD(R) with Subdweller Laser Performance ------------- Evolutions (0) 0 Regions Visited (3) 600 Robots Destroyed (6) 30 Value Destroyed (51) 51 Prototype IDs (0) 0 Alien Tech Used (0) 0 Bonus (0) 0 TOTAL SCORE: 681 Bonus ------- None Cogmind --------- Core Integrity 0/250 Matter 300/300 Energy 125/125 System Corruption 0% Temperature Cool (6) Movement Walking (120) Location -10/Subcaves Parts ------- > --- POWER (1) -------- Light Ion Engine > --- PROPULSION (2) --- Improved Aluminum Leg Improved Aluminum Leg > --- UTILITY (2) ------ Medium Storage Unit > --- WEAPON (2) ------- Makeshift Hammer > --- INVENTORY (10) --- Light Ion Engine Light Ion Engine Aluminum Leg Aluminum Leg Small Storage Unit Medium Battery (150) Light EM Pulse Cannon Light Assault Rifle EMP Blaster Grenade Launcher Peak State ------------ > --- POWER ------------ Light Ion Engine > --- PROPULSION ------- Improved Aluminum Leg Improved Aluminum Leg > --- UTILITY ---------- Medium Storage Unit Improved Terrain Scanner > --- WEAPON ----------- Medium Laser Makeshift Hammer > --- INVENTORY -------- Light Ion Engine Light Ion Engine Aluminum Leg Aluminum Leg Small Storage Unit Medium Battery Light EM Pulse Cannon Light Assault Rifle EMP Blaster Grenade Launcher [Rating: 15] Favorites ----------- Power Light Ion Engine Engine Light Ion Engine Propulsion Improved Aluminum Leg Leg Improved Aluminum Leg Utility Improved Terrain Scanner Device Improved Terrain Scanner Storage Medium Storage Unit Weapon Medium Laser Energy Gun Medium Laser Ballistic Gun Light Assault Rifle Impact Weapon Makeshift Hammer Build | -11 -10 -10 -10 ------- Run | Yrd Mat Min Sub Slots Evolved . | . . . . Power . | . . . . Propulsion . | . . . . Utility . | . . . . Weapon . | . . . . Parts Attached 11 | 7 3 . 1 Power 1 | 1 . . . Engine 1 | 1 . . . Core . | . . . . Reactor . | . . . . Propulsion 4 | 2 2 . . Treads . | . . . . Leg 4 | 2 2 . . Wheel . | . . . . Hover . | . . . . Flight . | . . . . Utility 3 | 2 1 . . Device 1 | 1 . . . Storage 2 | 1 1 . . Processor . | . . . . Hackware . | . . . . Protection . | . . . . Artifact . | . . . . Weapon 3 | 2 . . 1 Energy Gun 1 | 1 . . . Energy Cannon . | . . . . Ballistic Gun 1 | 1 . . . Ballistic Cannon . | . . . . Launcher . | . . . . Special Weapon . | . . . . Impact Weapon 1 | . . . 1 Slashing Weapon . | . . . . Piercing Weapon . | . . . . Special Melee Weapon . | . . . . Unidentified Prototypes . | . . . . Parts Lost 2 | . . . 2 Power . | . . . . Propulsion . | . . . . Utility 1 | . . . 1 Weapon 1 | . . . 1 Highest Loss Streak 2 | . . . 2 To Critical Strikes . | . . . . Average Backups 7 | 3 5 9 10 Power 2 | 1 3 3 2 Propulsion 1 | 1 . 2 2 Utility 1 | . 1 2 2 Weapon 1 | . . 2 3 Tool/Special . | . . . . Unused Backups 9 | 2 . . 7 Power 3 | . . . 3 Propulsion 1 | 1 . . . Utility 1 | . . . 1 Weapon 4 | 1 . . 3 Tool/Special . | . . . . Average Slot Usage (%) 99 | . 100 100 97 Engine 14 | . 14 14 14 Leg 28 | . 28 28 28 Device 13 | . 14 14 13 Storage 14 | . 14 14 14 Energy Gun 13 | . 14 14 12 Ballistic Gun 12 | . 14 14 10 Impact Weapon 1 | . . . 3 Peak Build Rating 15 | 9 12 12 15 Average Rating 9 | 5 9 12 12 On Entrance 8 | . 9 12 12 Avg Prop Armor Cover (%) . | . . . . Naked Turns . | . . . . Heaviest Build 19 | 12 17 17 19 Greatest Support 26 | 20 26 26 26 Greatest Overweight (x) 1 | 1 . . . Average Overweight (x) . | . . . . Largest Inventory Capacity 10 | 8 10 10 10 Average Capacity 9 | 7 8 10 10 Most Carried 10 | 7 9 10 10 Average Carried 7 | 3 5 9 9 Final Capacity 10 | 8 10 10 10 Final Carried 10 | 3 9 10 10 Class Distribution -------------------- 100% | Mutant Dominant Class ---------------- Mutant | -10/Materials Mutant | -10/Mines Mutant | -10/Subcaves Resources | -11 -10 -10 -10 ----------- Run | Yrd Mat Min Sub Matter Collected 324 | 270 . 54 . Remotely . | . . . . Salvage Created 98 | 50 . 48 . Parts 15 | 7 . 8 . Haulers Intercepted . | . . . . Recyclers Shooed . | . . . . Parts Field Recycled . | . . . . Retrieved Matter . | . . . . Parts Self-Destructed 6 | . . . 6 Prevented . | . . . . Parts Restored . | . . . . Kills | -11 -10 -10 -10 ------- Run | Yrd Mat Min Sub Combat Hostiles Destroyed 3 | . . 3 . Guns 3 | . . 3 . Classes Destroyed 2 | 1 . 1 . Tunneler 3 | 3 . . . Swarmer 3 | . . 3 . Best Kill Streak 3 | 2 . 3 . Combat Bots Only 3 | . . 3 . Max Kills in Single Turn 1 | 1 . 1 . Gunslinging . | . . . . Exploded . | . . . . Melee . | . . . . Uniques/NPCs Destroyed . | . . . . Combat | -11 -10 -10 -10 -------- Run | Yrd Mat Min Sub Hostile Shots Fired 42 | . 5 6 31 Missed 19 | . 3 2 14 Hits 23 | . 2 4 17 Projectile 23 | . 2 4 17 AOE 6 | . . . 6 Damage Taken 589 | . 21 36 532 Core 252 | . 11 26 215 Absorbed by Shields . | . . . . Core Remaining (%) 100 | 100 . . . Volleys Fired 14 | 10 . 4 . Largest 2 | 2 . 2 . Hottest 70 | 70 . 70 . Shots Fired 28 | 20 . 8 . Gun 28 | 20 . 8 . Cannon . | . . . . Launcher . | . . . . Special . | . . . . Kinetic 14 | 10 . 4 . Thermal 14 | 10 . 4 . Explosive . | . . . . Electromagnetic . | . . . . Robot Hit Streak 8 | 8 . 4 . Robot Miss Streak 2 | 2 . 2 . Penetration Max . | . . . . Secondary Targets . | . . . . Shots Hit Robots 20 | 14 . 4 2 Core Hits 8 | 5 . 3 . Critical Kills 1 | 1 . . . Critical Parts Destroyed . | . . . . Critical Strikes 2 | 1 . . 1 Destroy 1 | 1 . . . Smash 1 | . . . 1 Melee Attacks 2 | . . . 2 Impact 2 | . . . 2 Slashing . | . . . . Piercing . | . . . . Sneak Attacks . | . . . . Combat Hostiles . | . . . . Follow-up Attacks . | . . . . Damage Inflicted 286 | 148 . 45 93 Guns 193 | 148 . 45 . Cannons . | . . . . Explosions . | . . . . Melee 93 | . . . 93 Ramming . | . . . . Kinetic 54 | 46 . 8 . Thermal 139 | 102 . 37 . Explosive . | . . . . Electromagnetic . | . . . . Impact 93 | . . . 93 Slashing . | . . . . Piercing . | . . . . Highest Corruption . | . . . . Average Corruption . | . . . . Corruption Purged . | . . . . Corruption Blocked . | . . . . Overload Shots . | . . . . Overflow Damage . | . . . . Projectiles . | . . . . Explosions . | . . . . Melee . | . . . . Knockbacks . | . . . . Impact . | . . . . Kinetic . | . . . . Secondary . | . . . . Self-Inflicted Damage . | . . . . Shots . | . . . . Rammed . | . . . . Targets Rammed . | . . . . Kicked . | . . . . Crushed . | . . . . Highest Temperature 80 | 50 . 80 . Average Temperature 27 | 21 . 40 . Received Heat Transfer 96 | . 12 . 84 Siege Activations . | . . . . Martial Activations . | . . . . Shielding Activations . | . . . . Robots Disrupted . | . . . . Combat Hostiles . | . . . . Robots Corrupted . | . . . . Combat Hostiles . | . . . . Parts Fried . | . . . . Impact Corruptions . | . . . . Robots Melted . | . . . . Combat Hostiles . | . . . . Parts Melted . | . . . . Heat Transferred 407 | 296 . 111 . Parts Sabotaged . | . . . . Parts Stolen . | . . . . Parts Stripped . | . . . . Power Chain Reactions . | . . . . Alert | -11 -10 -10 -10 ------- Run | Yrd Mat Min Sub Maximum Alert Level . | . . . . Low Security (%) 100 | 100 100 100 . Level 1 . | . . . . Level 2 . | . . . . Level 3 . | . . . . Level 4 . | . . . . Level 5 . | . . . . High Security . | . . . . Max Security . | . . . . Peak Influence 70 | 5 . 70 . Initial . | . . . . Average 6 | . . 17 . Influence Increases 85 | 15 . 70 . Destroy 0b10 Robot/C 60 | . . 60 . Destroy 0b10 Robot/NC 15 | 15 . . . Destroy Leader 10 | . . 10 . Influence Decreases 85 | 15 . 70 . Time Decay 85 | 15 . 70 . Squads Dispatched 1 | . 1 . . Investigation . | . . . . Extermination . | . . . . Reinforcement 1 | . 1 . . Assault . | . . . . Garrison . | . . . . Intercept . | . . . . Searches Triggered . | . . . . Construction Impeded . | . . . . Haulers Reinforced . | . . . . Active Scanning Responses . | . . . . Cargo Convoy Interrupts . | . . . . Stealth | -11 -10 -10 -10 --------- Run | Yrd Mat Min Sub Distress Signals 1 | . 1 . . Communications Jammed . | . . . . Distress Signals . | . . . . Times Spotted 10 | . 4 3 3 Peak Tracking Total 4 | . 4 3 3 Tactical Retreats . | . . . . Traps | -11 -10 -10 -10 ------- Run | Yrd Mat Min Sub Traps Triggered . | . . . . Indirectly . | . . . . Trap Hack Attempts . | . . . . Triggered . | . . . . Disarmed . | . . . . Reprogrammed . | . . . . Reused . | . . . . Traps Extracted . | . . . . Installed . | . . . . Triggered . | . . . . Machines | -11 -10 -10 -10 ---------- Run | Yrd Mat Min Sub Machines Disabled . | . . . . Max in Single Turn . | . . . . Machines Repaired . | . . . . Machines Dismantled . | . . . . Machines Sabotaged . | . . . . Overloaded Fab Kills . | . . . . Hacking | -11 -10 -10 -10 --------- Run | Yrd Mat Min Sub Machines Accessed 1 | . 1 . . Terminals . | . . . . Fabricators . | . . . . Repair Stations . | . . . . Recycling Units 1 | . 1 . . Scanalyzers . | . . . . Garrison Access . | . . . . Total Hacks 2 | . 2 . . Successful 1 | . 1 . . Failed 1 | . 1 . . Catastrophic . | . . . . Database Lockouts . | . . . . Manual . | . . . . Terminals . | . . . . Fabricators . | . . . . Repair Stations . | . . . . Recycling Units 2 | . 2 . . Scanalyzers . | . . . . Garrison Access . | . . . . Terminal Hacks . | . . . . Fabricator Hacks . | . . . . Repair Station Hacks . | . . . . Recycling Unit Hacks 1 | . 1 . . Process 1 | . 1 . . Scanalyzer . | . . . . Garrison Access Hacks . | . . . . Unauthorized Hacks . | . . . . Terminals . | . . . . Fabricators . | . . . . Repair Stations . | . . . . Recycling Units . | . . . . Scanalyzers . | . . . . Garrison Access . | . . . . Data Cores Recovered . | . . . . Used . | . . . . Hacking Detections 1 | . 1 . . Full Trace Events . | . . . . Feedback Events . | . . . . Feedback Blocked . | . . . . Robot Schematics Acquired . | . . . . Robots Built . | . . . . Authchips . | . . . . Time . | . . . . Total Robot Build Rating . | . . . . Part Schematics Acquired . | . . . . Parts Built . | . . . . Authchips . | . . . . Time . | . . . . Total Part Build Rating . | . . . . Part Studies Acquired . | . . . . Parts Repaired . | . . . . Time . | . . . . Parts Recycled . | . . . . Recycled Matter 15 | . 15 . . Retrieved Matter . | . . . . Retrieved Components . | . . . . Parts Scanalyzed . | . . . . Part Schematics Acquired . | . . . . Parts Damaged . | . . . . Bothacking | -11 -10 -10 -10 ------------ Run | Yrd Mat Min Sub Used RIF Installer . | . . . . Robots Hacked . | . . . . Non-combat . | . . . . Combat . | . . . . Robot Hacks Applied . | . . . . Relay Couplers Released . | . . . . Fabnet Peak Effective % . | . . . . Robots Rewired . | . . . . Allies Hacked . | . . . . Hacks Repelled . | . . . . Allies | -11 -10 -10 -10 -------- Run | Yrd Mat Min Sub Total Allies . | . . . . Largest Group . | . . . . Highest-Rated Group . | . . . . Highest-Rated Ally . | . . . . Total Orders . | . . . . Ally Attacks . | . . . . Total Damage . | . . . . Kills . | . . . . Allies Corrupted . | . . . . Allies Melted . | . . . . Intel | -11 -10 -10 -10 ------- Run | Yrd Mat Min Sub Active Infowar (turns) 682 | 27 138 279 238 Terrain 682 | 27 138 279 238 Robot Analysis Total . | . . . . Derelict Logs Recovered 1 | . . . 1 Drone Launches . | . . . . Drone Recoveries . | . . . . Exploration | -11 -10 -10 -10 ------------- Run | Yrd Mat Min Sub Turns Passed 950 | 289 140 279 242 Spaces Moved 651 | 142 105 223 181 Core 8 | 8 . . . Treads . | . . . . Legs 643 | 134 105 223 181 Wheels . | . . . . Hover . | . . . . Flight . | . . . . Fastest Speed 50 | 50 120 120 120 Average Speed 130 | 170 120 120 120 Slowest Speed 190 | 190 120 120 120 Overloaded Moves . | . . . . Propulsion Burnouts . | . . . . Robots Hopped . | . . . . Potential Cave-ins . | . . . . Cave-ins Triggered . | . . . . Exploration Rate (%) 20 | 8 25 37 13 Regions Visited 3 Branch Regions 2 Pre-discovered Areas 2 | . . 1 1 Known Exits Taken . | . . . . Unknown Exits Taken 3 | 1 1 1 . Scrap Searched 1 | . . 1 . Spaces Dug . | . . . . Terrain Destroyed . | . . . . Melee . | . . . . Projectile . | . . . . AOE . | . . . . Terrain Rammed . | . . . . Walls Destroyed . | . . . . Machines Disabled . | . . . . Actions | -11 -10 -10 -10 --------- Run | Yrd Mat Min Sub Total 720 | 172 117 227 204 Wait 21 | . 3 . 18 Move 648 | 141 104 222 181 Hop . | . . . . Pick Up 20 | 12 6 1 1 Fast Attach . | . . . . Attach 7 | 7 . . . Detach . | . . . . Swap 5 | . 4 . 1 Drop 3 | 2 . . 1 Fire 14 | 10 . 4 . Melee 2 | . . . 2 Ram . | . . . . Kick . | . . . . Crush . | . . . . Escape Stasis . | . . . . Rewire . | . . . . Trap . | . . . . Miscellaneous . | . . . . Route ------- -11/Scrapyard -10/Materials -10/Mines (discovered 3 exits: [*Mat x2] / [*Sub]) -10/Subcaves History --------- Turn | Location | Event 18 | -11/Scrapyard | Discovered new exit (range 15) 290 | -11/Scrapyard | Entered Materials 310 | -10/Materials | Build established: Mutant 418 | -10/Materials | Discovered new exit (range 11) 430 | -10/Materials | Entered Mines 431 | -10/Mines | Learned location of Storage (-7) 534 | -10/Mines | Discovered new exit (range 7) 563 | -10/Mines | Discovered new exit (range 7) 604 | -10/Mines | Discovered new exit (range 11) 709 | -10/Mines | Entered Subcaves 710 | -10/Subcaves | Approached by a straggling Scientist 776 | -10/Subcaves | Learned location of Zion (-7) 776 | -10/Subcaves | Met a Zionite searching for "candidates" 781 | -10/Subcaves | Learned location of 1 exit from Materials 891 | -10/Subcaves | Shifting Twisted Machinery released Humpback 893 | -10/Subcaves | Shifting Twisted Machinery released Sub. Machine Gun 894 | -10/Subcaves | Ambushed by Subdweller buried in earth 919 | -10/Subcaves | Core integrity fell below 50% 921 | -10/Subcaves | Ambushed by Subdweller buried in earth 930 | -10/Subcaves | A swath of the cavern ceiling suddenly collapsed 931 | -10/Subcaves | Core integrity fell below 20% 951 | -10/Subcaves | Destroyed by Z7-1GD(R) with Subdweller Laser Last Messages --------------- World map updated: -7/Zion. Acquired derelict log, extracted data. Data stored: Materials exits (x1). J0-APE(c): "I think it's somewhere south of here" 6U-P13(O) collects matter. 6U-P13(O) puts together Mak. Hammer. Dropped Lgt. Ion Engine. Acquired Mak. Hammer. Subatomizers dissect the Lgt. Ion Engine. J0-APE(c): "I think it's somewhere south of here" Humpback falls loose from the Twisted Machinery. Sub. Machine Gun falls loose from the Twisted Machinery. WN-SDM(R) suffers critical hit (Smash). [Achievement: Do Not Disturb] Z7-1GD(R): "ARGHSUB!" T9-JXT(R): "ARGHSUB!" Med. Laser destroyed. A swath of the cavern ceiling suddenly collapses. WN-SDM(R) destroyed. Imp. Terrain Scanner destroyed. Map ----- +----------------------------------------------------+ | ???## ??### ??????????????? | | ??# ????# # ??????????????? | | ???# ##?## ## #######? ???????????????? | | ????# ## ######?####??????????????????? | | ???## #??##### #??????????????????? | | ? #?## #??????????????????? | | ? ### ##?##??????????????? | | ? % ######????????????? | | ? ### % ## #????????????? | | ?? ????# ##### #????????????? | | ??? ??????# ????###### ### ###??????????? | | ????????????# ##?????????####?# ## ##?????????? | | ????????????##????????######### ##? #?????????? | | ???????????????????##"&$$# #??# #?????????? | | ???????????????????# ??#;; #?## #?????????? | | ???????????????????# #### #### #?????????? | | ???????????????????#< # ; # # #?????????# | | ??????????????????##;; # ;# [ ##????????? | | ??????????????????#;; & R " #????????? | | ??????????????????#; &% ! ### #??#?????? | | ???????????????????# #?####????????? | | ????????????#??????# ##??????#?????? | | ???????????????#??## ; ###??????????? | | ??????????????##??#; ; #?#????????? | | ?????????????## ###; # ##??????????? | | ?????????????# ##; @ # #??????????? | | ?????????????# ## # ##" ##??????????? | | ?????????????## "#"###"#?"" #???????#???? | | ??????????????#### #### # ?" ##???????????? | | ???????????????#?# ## #?" ##????????????? | | ?????????????????# "## ####??####?????????????? | | ?????????????????##### ##???#?????????#????????? | | ?????????????????# ??## #???#?????#?????????????? | | ????????????????? ??? ???????????????????????? | | ????????????????" ???? ???????????????????????? | | ??????? ??????????????? " ???????????????????????? | | ??????????????????????? ???????????????????????? | | ?????????????????????????????????????????????????? | | ?????????????????????????????????????????????????? | | ?????????????????????????????????????????????????? | | ?????????????????????????????????????????????????? | | ?????????????????????????????????????????????????? | | ?????????????????????????????????????????????????? | | ?????????????????????????????????????????????????? | | ?????????????????????????????????????????????????? | | ?????????????????????????????????????????????????? | | ?????????????????????????????????????????????????? | | ?????????????????????????????????????????????????? | | ?????????????????????????????????????????????????? | | ?????????????????????????????????????????????????? | +----------------------------------------------------+ Best States ------------- Heat Dissipation 25 Energy Generation 10 Energy Capacity 125 Matter Stores 300 Matter Capacity 300 Sight Range 16 Terrain Scan Range 16 Terrain Scan Density 10 Evasion (%) 55 Item Schematics ----------------- None Robot Schematics ------------------ None Fabricated ------------ Nothing Repaired ---------- Nothing Studied --------- None Alien Tech Used ----------------- None Achievements -------------- Do Not Disturb Challenges ------------ None Game ------ Seed BottomlessPointMagmablaster Manual? 0 Play Time 00:12:38 Cumulative 6.5 hours Start 2025.11.02 @ 12:02:57 End 2025.11.02 @ 13:08:32 Sessions 9 Manual Loads 0 Difficulty Rogue Special Mode None Game No. 23 Rogue 23 Adventurer 0 Explorer 0 Win Type - Total 0 Types 0/0/0/0/0/0/0/0/0/0 Lore% 8 Gallery% 11 Achievement% 12 Wizard Run 0 Options --------- Layout 2 ASCII 0 Keyboard 0 Movement Numpad Keybinds 0 Fullscreen 0 Font 18/SmallcapsGlow Map View 76x48 Zoom Use 0% Tactical HUD 0 Map Filters NONE Filters NONE Steam 1 RUN: f45ff687-ddcc-4c59-94ae-bd00ea751db0